[Event "Tournoi de MI de l'Echiquier du Pays de Bray"]
[Site "Gournay-en-Bray, France"]
[Date "2023.05.18"]
[Round "6.5"]
[White "DEFROMONT, Benjamin"]
[Black "MOUHAMAD, Joachim"]
[Result "1-0"]
[TimeControl "1h30/40 + 30 (30s/c)"]
[WhiteTitle "FM"]
[BlackTitle "FM"]
[WhiteFideId "36068829"]
[BlackFideId "656410"]
[WhiteElo "2347"]
[BlackElo "2238"]

1. e4 {[%clk 01:30:56]} {[%emt 00:00:02]} c5 {[%clk 01:30:23]} {[%emt
00:00:38]} 2. Nf3 {[%clk 01:31:09]} {[%emt 00:00:17]} Nc6 {[%clk 01:30:33]}
{[%emt 00:00:20]} 3. Bb5 {[%clk 01:31:26]} {[%emt 00:00:13]} g6 {[%clk
01:30:34]} {[%emt 00:00:29]} 4. O-O {[%clk 01:31:45]} {[%emt 00:00:10]} Bg7
{[%clk 01:30:56]} {[%emt 00:00:09]} 5. Re1 {[%clk 01:31:51]} {[%emt 00:00:24]}
e5 {[%clk 01:31:04]} {[%emt 00:00:21]} 6. b4 {[%clk 01:31:39]} {[%emt
00:00:43]} Nxb4 {[%clk 01:24:16]} {[%emt 00:07:18]} 7. c3 {[%clk 01:31:47]}
{[%emt 00:00:23]} Nc6 {[%clk 01:15:55]} {[%emt 00:08:51]} 8. Ba3 {[%clk
01:32:09]} {[%emt 00:00:08]} Nge7 {[%clk 01:10:23]} {[%emt 00:06:02]} 9. d4
{[%clk 01:29:59]} {[%emt 00:02:40]} exd4 {[%clk 01:04:03]} {[%emt 00:06:49]} 10.
Bxc5 {[%clk 01:29:59]} {[%emt 00:00:30]} d6 {[%clk 01:02:32]} {[%emt 00:02:01]}
11. Bxd4 {[%clk 01:30:05]} {[%emt 00:00:24]} O-O {[%clk 01:02:15]} {[%emt
00:00:46]} 12. Bxg7 {[%clk 01:30:28]} {[%emt 00:00:06]} Kxg7 {[%clk 01:02:42]}
{[%emt 00:00:06]} 13. h3 {[%clk 01:30:47]} {[%emt 00:00:10]} h6 {[%clk
01:00:13]} {[%emt 00:02:59]} 14. Re3 {[%clk 01:27:11]} {[%emt 00:04:07]} Be6
{[%clk 00:55:36]} {[%emt 00:05:06]} 15. Nbd2 {[%clk 01:21:21]} {[%emt
00:06:20]} Rc8 {[%clk 00:51:27]} {[%emt 00:04:39]} 16. Qc1 {[%clk 01:15:09]}
{[%emt 00:06:42]} Qa5 {[%clk 00:43:22]} {[%emt 00:08:35]} 17. Qb2 {[%clk
01:07:34]} {[%emt 00:08:05]} Kh7 {[%clk 00:40:19]} {[%emt 00:03:32]} 18. Bf1
{[%emt 00:05:09]} Qc7 {[%clk 00:40:18]} {[%emt 00:00:29]} 19. c4 {[%clk
01:01:58]} {[%emt 00:01:30]} Rfd8 {[%clk 00:25:07]} {[%emt 00:15:41]} 20. Rc1
{[%clk 00:59:35]} {[%emt 00:02:53]} Rd7 {[%clk 00:25:01]} {[%emt 00:00:36]} 21.
Kh1 {[%clk 00:50:19]} {[%emt 00:09:45]} b6 {[%clk 00:23:25]} {[%emt 00:02:06]}
22. Nh2 {[%clk 00:42:29]} {[%emt 00:08:19]} Qd8 {[%clk 00:23:41]} {[%emt
00:00:15]} 23. f4 {[%clk 00:41:23]} {[%emt 00:01:36]} Qh8 {[%clk 00:23:53]}
{[%emt 00:00:18]} 24. Qa3 {[%clk 00:41:28]} {[%emt 00:00:25]} Qf6 {[%clk
00:17:35]} {[%emt 00:06:47]} 25. Rf3 {[%emt 00:04:36]} Nd4 {[%clk 00:17:38]} 26.
Rf2 {[%clk 00:37:58]} {[%emt 00:00:20]} Qg7 {[%clk 00:16:18]} {[%emt 00:01:49]}
27. Nhf3 {[%clk 00:32:18]} {[%emt 00:06:11]} Nxf3 {[%clk 00:16:25]} {[%emt
00:00:24]} 28. Nxf3 {[%clk 00:32:25]} {[%emt 00:00:24]} Rc5 {[%clk 00:16:38]}
{[%emt 00:00:18]} 29. Rd2 {[%clk 00:31:42]} {[%emt 00:01:12]} Ng8 {[%clk
00:11:24]} {[%emt 00:05:43]} 30. Nd4 {[%clk 00:27:39]} {[%emt 00:04:34]} Nf6
{[%clk 00:11:31]} {[%emt 00:00:23]} 31. f5 {[%clk 00:24:58]} {[%emt 00:03:11]}
gxf5 {[%clk 00:06:48]} {[%emt 00:05:13]} 32. exf5 {[%clk 00:25:05]} {[%emt
00:00:23]} Bxc4 {[%clk 00:04:50]} {[%emt 00:02:28]} 33. Bxc4 {[%clk 00:21:03]}
{[%emt 00:04:33]} Ne4 {[%clk 00:04:57]} {[%emt 00:00:23]} 34. f6 {[%clk
00:20:41]} {[%emt 00:00:52]} Qxf6 {[%clk 00:04:01]} {[%emt 00:01:25]} 35. Rf1
{[%clk 00:18:34]} {[%emt 00:02:37]} Qe5 {[%clk 00:04:31]} 36. Nf3 {[%clk
00:16:49]} {[%emt 00:02:15]} Qc3 {[%clk 00:01:47]} {[%emt 00:03:13]} 37. Qxc3
{[%clk 00:16:40]} {[%emt 00:00:41]} Nxc3 {[%clk 00:02:15]} {[%emt 00:00:01]} 38.
Bd3+ {[%clk 00:15:14]} {[%emt 00:01:56]} Kg8 {[%clk 00:02:29]} {[%emt
00:00:16]} 39. Nd4 {[%clk 00:15:12]} {[%emt 00:00:33]} Rd5 {[%clk 00:01:52]}
{[%emt 00:01:08]} 40. Rf4 {[%clk 00:13:57]} {[%emt 00:01:45]} b5 {[%clk
00:00:32]} {[%emt 00:01:50]} 41. Bc2 {[%clk 00:08:01]} {[%emt 00:06:26]} h5
{[%clk 00:23:42]} {[%emt 00:07:50]} 42. Bb3 {[%clk 00:38:21]} {[%emt 00:01:11]}
Re5 {[%clk 00:22:38]} {[%emt 00:01:33]} 43. Nf3 {[%clk 00:36:41]} {[%emt
00:02:10]} Re3 {[%clk 00:22:01]} {[%emt 00:01:08]} 44. Kh2 {[%clk 00:32:51]}
{[%emt 00:04:19]} a5 {[%clk 00:22:01]} {[%emt 00:00:30]} 45. Bd5 {[%clk
00:28:27]} {[%emt 00:04:54]} b4 {[%clk 00:21:07]} {[%emt 00:01:24]} 46. Rfd4
{[%clk 00:23:33]} {[%emt 00:05:24]} Re2 {[%clk 00:07:05]} {[%emt 00:14:32]} 47.
Rxe2 {[%clk 00:21:40]} {[%emt 00:02:23]} Nxe2 {[%clk 00:07:34]} {[%emt
00:00:02]} 48. Rd2 {[%clk 00:21:53]} {[%emt 00:00:17]} Nc3 {[%clk 00:07:43]}
{[%emt 00:00:21]} 49. Ng5 {[%clk 00:18:39]} {[%emt 00:03:45]} Re7 {[%clk
00:04:02]} {[%emt 00:04:11]} 50. Bc4 {[%clk 00:15:09]} {[%emt 00:04:00]} Rc7
{[%clk 00:00:48]} {[%emt 00:03:44]} 51. Bd5 {[%clk 00:13:37]} {[%emt 00:02:02]}
Re7 {[%clk 00:01:09]} {[%emt 00:00:09]} 52. Kg3 {[%clk 00:09:16]} {[%emt
00:04:51]} Kg7 {[%clk 00:01:09]} {[%emt 00:00:30]} 53. Kf4 {[%clk 00:08:46]}
{[%emt 00:01:00]} Re5 {[%clk 00:01:06]} {[%emt 00:00:33]} 54. Bf3 {[%clk
00:08:28]} {[%emt 00:00:47]} a4 {[%clk 00:00:56]} {[%emt 00:00:40]} 55. Ne4
{[%clk 00:08:33]} {[%emt 00:00:25]} Nd5+ {[%clk 00:00:31]} {[%emt 00:00:55]} 56.
Kg3 {[%clk 00:08:56]} {[%emt 00:00:07]} Ne3 {[%clk 00:00:45]} {[%emt 00:00:16]}
57. Kf2 {[%clk 00:08:32]} {[%emt 00:00:54]} Nc4 {[%clk 00:01:01]} {[%emt
00:00:15]} 58. Rd4 {[%clk 00:08:45]} {[%emt 00:00:17]} d5 {[%clk 00:01:30]} 59.
Nd2 {[%clk 00:09:02]} {[%emt 00:00:14]} Nb2 {[%clk 00:00:52]} {[%emt 00:01:08]}
60. Bxd5 {[%clk 00:05:31]} {[%emt 00:04:01]} Nd1+ {[%clk 00:01:05]} {[%emt
00:00:17]} 61. Kf3 {[%clk 00:05:32]} {[%emt 00:00:29]} Re3+ {[%clk 00:00:51]}
{[%emt 00:00:44]} 62. Kf4 {[%clk 00:05:31]} {[%emt 00:00:31]} Re2 {[%clk
00:00:32]} {[%emt 00:00:50]} 63. Bf3 {[%clk 00:05:09]} {[%emt 00:00:52]} Nc3
{[%clk 00:00:31]} {[%emt 00:00:30]} 64. Bxe2 {[%clk 00:05:11]} {[%emt
00:00:28]} Nxe2+ {[%clk 00:00:56]} {[%emt 00:00:06]} 65. Ke3 {[%clk 00:05:34]}
{[%emt 00:00:07]} Nxd4 {[%clk 00:00:32]} {[%emt 00:00:54]} 66. Kxd4 {[%clk
00:06:00]} {[%emt 00:00:04]} Kf6 {[%clk 00:00:46]} {[%emt 00:00:16]} 67. Kc4
{[%clk 00:06:01]} {[%emt 00:00:29]} b3 {[%clk 00:01:11]} {[%emt 00:00:05]} 68.
a3 {[%clk 00:06:28]} {[%emt 00:00:03]} Ke5 {[%clk 00:01:24]} {[%emt 00:00:16]}
69. Kb4 {[%clk 00:06:50]} {[%emt 00:00:08]} Kd4 {[%clk 00:01:39]} {[%emt
00:00:15]} 70. Kxa4 {[%clk 00:07:00]} {[%emt 00:00:21]} b2 {[%clk 00:01:48]}
{[%emt 00:00:20]} 71. Kb3 {[%clk 00:07:21]} {[%emt 00:00:09]} Kd5 {[%emt
00:00:07]} 1-0

[ePGN "0.1;DGT LiveChess/2.2.5"]

[Event "Tournoi de MI de l'Echiquier du Pays de Bray"]
[Site "Gournay-en-Bray, France"]
[Date "2023.05.19"]
[Round "7.1"]
[White "DGEBUADZE, Alexander"]
[Black "DECUIGNIERE, Tom"]
[Result "1/2-1/2"]
[TimeControl "1h30/40 + 30 (30s/c)"]
[WhiteTitle "GM"]
[BlackTitle "FM"]
[WhiteFideId "203882"]
[BlackFideId "26093820"]
[WhiteElo "2435"]
[BlackElo "2396"]

1. e4 {[%clk 01:30:37]} {[%emt 00:00:22]} c6 {[%clk 01:30:49]} {[%emt
00:00:11]} 2. d4 {[%clk 01:30:58]} {[%emt 00:00:09]} d5 {[%clk 01:31:13]}
{[%emt 00:00:07]} 3. Nc3 {[%clk 01:31:21]} {[%emt 00:00:07]} dxe4 {[%clk
01:31:33]} {[%emt 00:00:11]} 4. Nxe4 {[%clk 01:31:44]} {[%emt 00:00:06]} Bf5
{[%clk 01:31:39]} {[%emt 00:00:24]} 5. Ng3 {[%clk 01:32:01]} {[%emt 00:00:13]}
Bg6 {[%clk 01:32:02]} {[%emt 00:00:08]} 6. Nf3 {[%clk 01:32:06]} {[%emt
00:00:25]} e6 {[%clk 01:31:51]} {[%emt 00:00:42]} 7. h4 {[%clk 01:31:28]}
{[%emt 00:01:08]} h6 {[%clk 01:32:08]} {[%emt 00:00:13]} 8. h5 {[%clk
01:31:50]} {[%emt 00:00:08]} Bh7 {[%clk 01:32:31]} {[%emt 00:00:07]} 9. Bd3
{[%clk 01:32:07]} {[%emt 00:00:13]} Bxd3 {[%clk 01:32:51]} {[%emt 00:00:10]} 10.
Qxd3 {[%clk 01:32:30]} {[%emt 00:00:07]} Nf6 {[%clk 01:33:00]} {[%emt
00:00:21]} 11. Bd2 {[%clk 01:32:35]} {[%emt 00:00:25]} c5 {[%clk 01:32:50]}
{[%emt 00:00:40]} 12. Ne4 {[%clk 01:29:58]} {[%emt 00:03:07]} Nc6 {[%clk
01:32:46]} {[%emt 00:00:34]} 13. Bc3 {[%clk 01:17:54]} {[%emt 00:12:34]} Nb4
{[%clk 01:28:10]} {[%emt 00:05:06]} 14. Bxb4 {[%clk 01:08:02]} {[%emt
00:10:22]} cxb4 {[%clk 01:27:47]} {[%emt 00:00:52]} 15. Qb5+ {[%clk 01:00:21]}
{[%emt 00:08:11]} Qd7 {[%clk 01:27:55]} {[%emt 00:00:21]} 16. Qxd7+ {[%clk
00:59:49]} {[%emt 00:01:42]} 1/2-1/2

[Event "Tournoi de MI de l'Echiquier du Pays de Bray"]
[Site "Gournay-en-Bray, France"]
[Date "2023.05.19"]
[Round "7.2"]
[White "ROSHKA, Yevgeniy"]
[Black "DEFROMONT, Benjamin"]
[Result "0-1"]
[TimeControl "1h30/40 + 30 (30s/c)"]
[WhiteTitle "IM"]
[BlackTitle "FM"]
[WhiteFideId "14129558"]
[BlackFideId "36068829"]
[WhiteElo "2508"]
[BlackElo "2347"]

1. e4 {[%clk 01:27:54]} {[%emt 00:02:58]} c5 {[%clk 01:30:48]} {[%emt
00:00:19]} 2. Nc3 {[%clk 01:28:18]} {[%emt 00:00:06]} Nc6 {[%clk 01:31:06]}
{[%emt 00:00:12]} 3. Bb5 {[%clk 01:28:43]} {[%emt 00:00:05]} Nf6 {[%clk
01:31:14]} {[%emt 00:00:22]} 4. Bxc6 {[%clk 01:28:10]} {[%emt 00:01:03]} dxc6
{[%clk 01:31:24]} {[%emt 00:00:20]} 5. f4 {[%clk 01:27:49]} {[%emt 00:00:51]}
Bg4 {[%clk 01:25:26]} {[%emt 00:06:28]} 6. Nf3 {[%clk 01:28:03]} {[%emt
00:00:16]} e5 {[%clk 01:23:38]} {[%emt 00:02:18]} 7. f5 {[%clk 01:17:42]}
{[%emt 00:10:51]} c4 {[%clk 01:18:55]} {[%emt 00:05:14]} 8. h3 {[%clk
01:13:26]} {[%emt 00:04:46]} Bxf3 {[%clk 01:18:53]} {[%emt 00:00:32]} 9. Qxf3
{[%clk 01:13:49]} {[%emt 00:00:07]} Bc5 {[%clk 01:17:28]} {[%emt 00:01:55]} 10.
Ne2 {[%clk 01:11:22]} {[%emt 00:02:57]} Qd6 {[%clk 01:04:26]} {[%emt 00:13:32]}
11. b3 {[%clk 01:10:18]} {[%emt 00:01:34]} cxb3 {[%clk 01:02:06]} {[%emt
00:02:50]} 12. axb3 {[%clk 01:10:43]} {[%emt 00:00:06]} O-O-O {[%clk 01:01:21]}
{[%emt 00:01:14]} 13. d3 {[%clk 01:07:21]} {[%emt 00:03:53]} Bb4+ {[%clk
00:53:49]} {[%emt 00:08:03]} 14. Kf1 {[%clk 01:06:32]} {[%emt 00:01:19]} Bc5
{[%clk 00:53:10]} {[%emt 00:01:09]} 15. g4 {[%clk 01:06:31]} {[%emt 00:00:31]}
h6 {[%clk 00:50:00]} {[%emt 00:03:40]} 16. Kg2 {[%clk 01:05:18]} {[%emt
00:01:43]} Rdg8 {[%clk 00:48:12]} {[%emt 00:02:18]} 17. Rf1 {[%clk 00:44:10]}
{[%emt 00:21:37]} g5 {[%clk 00:43:29]} {[%emt 00:05:13]} 18. fxg6 {[%clk
00:41:12]} {[%emt 00:03:29]} Rxg6 {[%clk 00:38:39]} {[%emt 00:05:19]} 19. Bd2
{[%clk 00:41:28]} {[%emt 00:00:13]} Kb8 {[%clk 00:34:58]} {[%emt 00:04:12]} 20.
Qf5 {[%clk 00:35:05]} {[%emt 00:06:53]} Rhg8 {[%clk 00:32:30]} {[%emt
00:02:58]} 21. Ng3 {[%clk 00:35:00]} {[%emt 00:00:34]} Bb6 {[%clk 00:25:26]}
{[%emt 00:07:34]} 22. Rf3 {[%clk 00:30:35]} {[%emt 00:04:55]} Bd8 {[%clk
00:22:21]} {[%emt 00:03:35]} 23. Be3 {[%clk 00:27:53]} {[%emt 00:03:11]} Rg5
{[%clk 00:19:20]} {[%emt 00:03:32]} 24. Bxg5 {[%clk 00:18:30]} {[%emt
00:09:53]} Rxg5 {[%clk 00:19:37]} {[%emt 00:00:12]} 25. Raf1 {[%clk 00:18:47]}
{[%emt 00:00:13]} Rxf5 {[%clk 00:17:20]} {[%emt 00:02:47]} 26. Nxf5 {[%clk
00:19:14]} {[%emt 00:00:02]} Qf8 {[%clk 00:17:23]} {[%emt 00:00:27]} 27. Ng3
{[%clk 00:18:49]} {[%emt 00:00:56]} Qc5 {[%clk 00:15:16]} {[%emt 00:02:38]} 28.
c4 {[%clk 00:18:28]} {[%emt 00:00:51]} Qb4 {[%clk 00:14:50]} {[%emt 00:00:55]}
29. Nf5 {[%clk 00:18:50]} {[%emt 00:00:09]} Ng8 {[%clk 00:10:38]} {[%emt
00:04:42]} 30. Ng3 {[%clk 00:19:14]} {[%emt 00:00:05]} f6 {[%clk 00:10:49]}
{[%emt 00:00:19]} 31. h4 {[%clk 00:19:20]} {[%emt 00:00:24]} Be7 {[%clk
00:09:48]} {[%emt 00:01:32]} 32. Nf5 {[%clk 00:18:39]} {[%emt 00:01:10]} Bc5
{[%clk 00:10:07]} {[%emt 00:00:11]} 33. Kh3 {[%clk 00:18:38]} {[%emt 00:00:31]}
a5 {[%clk 00:09:55]} {[%emt 00:00:43]} 34. h5 {[%clk 00:18:12]} {[%emt
00:00:56]} Bb6 {[%clk 00:07:38]} {[%emt 00:02:47]} 35. Ng3 {[%clk 00:18:10]}
{[%emt 00:00:32]} Ka7 {[%clk 00:06:42]} {[%emt 00:01:26]} 36. Nf5 {[%clk
00:17:14]} {[%emt 00:01:25]} Qxb3 {[%clk 00:06:18]} {[%emt 00:00:54]} 37. d4
{[%clk 00:17:20]} {[%emt 00:00:25]} Qxc4 {[%clk 00:06:00]} {[%emt 00:00:48]} 38.
dxe5 {[%clk 00:17:45]} {[%emt 00:00:04]} fxe5 {[%clk 00:05:44]} {[%emt
00:00:46]} 39. Rb1 {[%clk 00:16:42]} {[%emt 00:01:33]} Bc5 {[%clk 00:05:36]}
{[%emt 00:00:38]} 40. Ng3 {[%clk 00:16:44]} {[%emt 00:00:29]} a4 {[%clk
00:05:08]} {[%emt 00:00:57]} 41. Rff1 {[%clk 00:17:05]} {[%emt 00:00:08]} Be3
{[%clk 00:03:04]} {[%emt 00:02:35]} 42. Nf5 {[%clk 00:17:27]} {[%emt 00:00:08]}
Qd3 {[%clk 00:01:57]} {[%emt 00:01:38]} 43. Kh2 {[%clk 00:17:13]} {[%emt
00:00:43]} Bf4+ {[%clk 00:01:29]} {[%emt 00:00:58]} 44. Kg1 {[%clk 00:17:37]}
{[%emt 00:00:06]} Qc2 {[%clk 00:30:49]} {[%emt 00:01:41]} 45. Rfd1 {[%clk
00:48:54]} {[%emt 00:00:13]} Nf6 {[%clk 00:30:43]} {[%emt 00:00:36]} 46. Nd6
{[%clk 00:49:02]} {[%emt 00:00:22]} Nxg4 {[%clk 00:30:00]} {[%emt 00:01:13]} 47.
Nc8+ {[%clk 00:48:53]} {[%emt 00:00:39]} Kb8 {[%clk 00:30:03]} {[%emt
00:00:27]} 0-1

[Event "Tournoi de MI de l'Echiquier du Pays de Bray"]
[Site "Gournay-en-Bray, France"]
[Date "2023.05.19"]
[Round "7.3"]
[White "DUBESSAY, Bastien"]
[Black "NIKCEVIC, Nebosja"]
[Result "1-0"]
[TimeControl "1h30/40 + 30 (30s/c)"]
[WhiteTitle "FM"]
[BlackTitle "GM"]
[WhiteFideId "650048"]
[BlackFideId "901776"]
[WhiteElo "2283"]
[BlackElo "2373"]

1. d4 {[%clk 01:30:57]} {[%emt 00:00:02]} d5 {[%clk 01:30:48]} {[%emt
00:00:13]} 2. c4 {[%clk 01:31:19]} {[%emt 00:00:07]} dxc4 {[%clk 01:31:12]}
{[%emt 00:00:06]} 3. Nf3 {[%clk 01:31:23]} {[%emt 00:00:27]} a6 {[%clk
01:30:05]} {[%emt 00:01:37]} 4. e3 {[%clk 01:29:58]} {[%emt 00:01:54]} e6
{[%clk 01:28:44]} {[%emt 00:01:51]} 5. Bxc4 {[%clk 01:30:06]} {[%emt 00:00:22]}
Nf6 {[%clk 01:28:25]} {[%emt 00:00:49]} 6. O-O {[%clk 01:30:25]} {[%emt
00:00:10]} b5 {[%clk 01:28:49]} {[%emt 00:00:07]} 7. Bd3 {[%clk 01:29:27]}
{[%emt 00:01:28]} Bb7 {[%clk 01:29:01]} {[%emt 00:00:17]} 8. Qe2 {[%clk
01:28:50]} {[%emt 00:01:07]} Nbd7 {[%clk 01:25:33]} {[%emt 00:03:58]} 9. a4
{[%clk 01:26:42]} {[%emt 00:02:38]} c5 {[%clk 01:20:42]} {[%emt 00:05:21]} 10.
axb5 {[%clk 01:24:01]} {[%emt 00:03:11]} axb5 {[%clk 01:17:57]} {[%emt
00:03:16]} 11. Rxa8 {[%clk 01:24:24]} {[%emt 00:00:07]} Qxa8 {[%clk 01:18:22]}
{[%emt 00:00:05]} 12. Bxb5 {[%clk 01:24:18]} {[%emt 00:00:36]} Bxf3 {[%clk
01:14:55]} {[%emt 00:03:57]} 13. Qxf3 {[%clk 01:17:18]} {[%emt 00:07:30]} Qxf3
{[%clk 01:15:17]} {[%emt 00:00:09]} 14. gxf3 {[%clk 01:17:43]} {[%emt
00:00:05]} cxd4 {[%clk 01:15:33]} {[%emt 00:00:14]} 15. Rd1 {[%clk 01:03:26]}
{[%emt 00:14:47]} Bc5 {[%clk 01:14:58]} {[%emt 00:01:05]} 16. exd4 {[%clk
01:00:55]} {[%emt 00:03:02]} Bd6 {[%clk 01:14:59]} {[%emt 00:00:28]} 17. Nc3
{[%clk 00:57:40]} {[%emt 00:03:45]} Ke7 {[%clk 01:15:02]} {[%emt 00:00:27]} 18.
Ne4 {[%clk 00:42:15]} {[%emt 00:15:55]} Nd5 {[%clk 01:12:39]} {[%emt 00:02:52]}
19. Nxd6 {[%clk 00:39:22]} {[%emt 00:03:24]} Kxd6 {[%clk 01:13:02]} {[%emt
00:00:07]} 20. Bd3 {[%clk 00:36:58]} {[%emt 00:02:54]} Rb8 {[%clk 01:11:37]}
{[%emt 00:01:55]} 21. Kf1 {[%clk 00:31:20]} {[%emt 00:06:08]} Rb4 {[%clk
01:11:17]} {[%emt 00:00:50]} 22. Bc2 {[%clk 00:31:21]} {[%emt 00:00:29]} Rc4
{[%clk 01:07:05]} {[%emt 00:04:41]} 23. Bb3 {[%clk 00:30:13]} {[%emt 00:01:39]}
Rb4 {[%clk 01:05:54]} {[%emt 00:01:41]} 24. Bc2 {[%clk 00:30:25]} {[%emt
00:00:18]} Rc4 {[%clk 01:05:40]} {[%emt 00:00:43]} 25. Bb1 {[%clk 00:30:22]}
{[%emt 00:00:34]} Nb8 {[%clk 00:45:10]} {[%emt 00:21:00]} 26. b3 {[%clk
00:29:36]} {[%emt 00:01:16]} Rc7 {[%clk 00:44:37]} {[%emt 00:01:03]} 27. Ba3+
{[%clk 00:29:40]} {[%emt 00:00:25]} Kd7 {[%clk 00:44:58]} {[%emt 00:00:09]} 28.
Bd3 {[%clk 00:26:29]} {[%emt 00:03:42]} Rc3 {[%clk 00:27:03]} {[%emt 00:18:24]}
29. Bb5+ {[%clk 00:25:50]} {[%emt 00:01:09]} Nc6 {[%clk 00:26:27]} {[%emt
00:01:07]} 30. Rc1 {[%clk 00:21:41]} {[%emt 00:04:39]} g6 {[%clk 00:14:48]}
{[%emt 00:12:09]} 31. Kg2 {[%clk 00:08:02]} {[%emt 00:14:10]} Rxc1 {[%clk
00:12:49]} {[%emt 00:02:30]} 32. Bxc1 {[%clk 00:08:27]} {[%emt 00:00:05]} Nc3
{[%clk 00:12:58]} {[%emt 00:00:20]} 33. Bc4 {[%clk 00:06:35]} {[%emt 00:02:22]}
Nxd4 {[%clk 00:12:56]} {[%emt 00:00:32]} 34. Bb2 {[%clk 00:06:57]} {[%emt
00:00:08]} Nce2 {[%clk 00:09:27]} {[%emt 00:03:58]} 35. Kf1 {[%clk 00:06:56]}
{[%emt 00:00:33]} Nxf3 {[%clk 00:08:03]} {[%emt 00:01:54]} 36. Kxe2 {[%clk
00:07:13]} {[%emt 00:00:12]} Nxh2 {[%clk 00:08:28]} {[%emt 00:00:04]} 37. f3
{[%clk 00:07:16]} {[%emt 00:00:27]} g5 {[%clk 00:08:54]} {[%emt 00:00:05]} 38.
Be5 {[%clk 00:07:37]} {[%emt 00:00:10]} 1-0

[Event "Tournoi de MI de l'Echiquier du Pays de Bray"]
[Site "Gournay-en-Bray, France"]
[Date "2023.05.19"]
[Round "7.4"]
[White "LEFEBVRE, Hervé"]
[Black "HÖGLAUER, Patrick"]
[Result "1/2-1/2"]
[TimeControl "1h30/40 + 30 (30s/c)"]
[WhiteTitle "FM"]
[BlackTitle "FM"]
[WhiteFideId "607363"]
[BlackFideId "1270548"]
[WhiteElo "2161"]
[BlackElo "2280"]

1. d4 {[%clk 01:30:53]} {[%emt 00:00:06]} Nf6 {[%clk 01:30:55]} {[%emt
00:00:05]} 2. Nf3 {[%clk 01:31:16]} {[%emt 00:00:07]} e6 {[%clk 01:31:06]}
{[%emt 00:00:19]} 3. Bf4 {[%clk 01:30:13]} {[%emt 00:01:33]} c5 {[%clk
01:29:05]} {[%emt 00:02:31]} 4. e3 {[%clk 01:30:26]} {[%emt 00:00:17]} b6
{[%clk 01:28:07]} {[%emt 00:01:29]} 5. Nc3 {[%clk 01:27:31]} {[%emt 00:03:25]}
d5 {[%clk 01:13:21]} {[%emt 00:15:16]} 6. Nb5 {[%clk 01:24:32]} {[%emt
00:03:28]} Na6 {[%clk 01:09:58]} {[%emt 00:03:53]} 7. h3 {[%clk 01:22:25]}
{[%emt 00:02:37]} Be7 {[%clk 01:06:22]} {[%emt 00:04:06]} 8. c3 {[%clk
01:18:56]} {[%emt 00:03:59]} O-O {[%clk 01:03:58]} {[%emt 00:02:54]} 9. Bd3
{[%clk 01:18:07]} {[%emt 00:01:20]} Ne4 {[%clk 00:58:48]} {[%emt 00:05:40]} 10.
Qe2 {[%clk 01:13:04]} {[%emt 00:05:33]} Bb7 {[%clk 00:55:05]} {[%emt 00:04:13]}
11. O-O {[%clk 01:10:23]} {[%emt 00:03:11]} f6 {[%clk 00:47:12]} {[%emt
00:08:23]} 12. Rfd1 {[%clk 00:56:11]} {[%emt 00:14:42]} Qe8 {[%clk 00:37:19]}
{[%emt 00:10:23]} 13. Bxe4 {[%clk 00:54:53]} {[%emt 00:01:49]} dxe4 {[%clk
00:37:47]} {[%emt 00:00:01]} 14. Nd2 {[%clk 00:55:16]} {[%emt 00:00:07]} Qc6
{[%clk 00:35:49]} {[%emt 00:02:28]} 15. a4 {[%clk 00:52:51]} {[%emt 00:02:55]}
Kh8 {[%clk 00:32:35]} {[%emt 00:03:44]} 16. Nc4 {[%clk 00:43:29]} {[%emt
00:09:52]} Rfd8 {[%clk 00:32:20]} {[%emt 00:00:45]} 17. Rac1 {[%clk 00:42:50]}
{[%emt 00:01:09]} Rd7 {[%clk 00:26:10]} {[%emt 00:06:40]} 18. b4 {[%clk
00:22:24]} {[%emt 00:20:56]} e5 {[%clk 00:14:10]} {[%emt 00:12:29]} 19. dxe5
{[%clk 00:08:22]} {[%emt 00:14:32]} Rxd1+ {[%clk 00:13:43]} {[%emt 00:00:58]}
20. Rxd1 {[%clk 00:04:15]} {[%emt 00:04:37]} cxb4 {[%clk 00:13:37]} {[%emt
00:00:36]} 21. Ncd6 {[%clk 00:01:43]} {[%emt 00:03:01]} b3 {[%clk 00:09:38]}
{[%emt 00:04:29]} 22. Nxb7 {[%clk 00:00:42]} {[%emt 00:01:32]} Qxb7 {[%clk
00:10:06]} {[%emt 00:00:02]} 23. Qc4 {[%clk 00:00:43]} {[%emt 00:00:28]} Nc5
{[%clk 00:10:34]} {[%emt 00:00:02]} 24. exf6 {[%clk 00:00:40]} {[%emt
00:00:33]} Bxf6 {[%clk 00:11:01]} {[%emt 00:00:03]} 25. Nd6 {[%clk 00:01:08]}
{[%emt 00:00:03]} Qe7 {[%clk 00:09:34]} {[%emt 00:01:57]} 26. Nf7+ {[%clk
00:01:33]} {[%emt 00:00:05]} Kg8 {[%clk 00:10:03]} 27. Nh6+ {[%clk 00:01:41]}
{[%emt 00:00:22]} Kh8 {[%clk 00:10:32]} 28. Nf7+ {[%clk 00:01:05]} {[%emt
00:01:06]} Kg8 {[%clk 00:11:01]} 29. Nh6+ {[%clk 00:00:46]} {[%emt 00:00:49]}
1/2-1/2